[Event "Titled Tuesday Blitz December 20 Early 2022"]
[White "Aranos Garcia, Ricardo"]
[Black "lemayvega"]
[WhiteFideId "32028040"]
[WhiteElo "1971"]
[BlackElo "2529"]
[Result "0-1"]
[Round "03"]
[TimeControl "180+2"]
[Date "2022.12.20"]
[WhiteClock "0:00:20"]
[BlackClock "0:00:08"]

1. d4 {[%clk 0:02:58]}  Nf6 {[%clk 0:02:59]} 2. Bg5 {[%clk 0:02:57]}  c5 {[%clk 0:02:58]} 3. d5 {[%clk 0:02:54]}  Qb6 {[%clk 0:02:57]} 4. Nc3 {[%clk 0:02:55]}  g6 {[%clk 0:02:54]} 5. e4 {[%clk 0:02:48]}  Bg7 {[%clk 0:02:45]} 6. Bd2 {[%clk 0:02:30]}  d6 {[%clk 0:02:42]} 7. h3 {[%clk 0:02:30]}  O-O {[%clk 0:02:35]} 8. Nf3 {[%clk 0:02:29]}  e6 {[%clk 0:02:35]} 9. Rb1 {[%clk 0:02:25]}  a6 {[%clk 0:02:35]} 10. Be2 {[%clk 0:02:24]}  exd5 {[%clk 0:02:34]} 11. Nxd5 {[%clk 0:02:22]}  Nxd5 {[%clk 0:02:21]} 12. exd5 {[%clk 0:02:22]}  Nd7 {[%clk 0:02:21]} 13. O-O {[%clk 0:02:21]}  Nf6 {[%clk 0:02:20]} 14. c4 {[%clk 0:02:18]}  Bf5 {[%clk 0:02:19]} 15. Rc1 {[%clk 0:02:13]}  Qxb2 {[%clk 0:02:19]} 16. Bc3 {[%clk 0:02:12]}  Qxa2 {[%clk 0:02:17]} 17. Nh4 {[%clk 0:02:00]}  Ne4 {[%clk 0:01:56]} 18. Bxg7 {[%clk 0:01:46]}  Kxg7 {[%clk 0:01:56]} 19. Nxf5+ {[%clk 0:01:45]}  gxf5 {[%clk 0:01:54]} 20. Ra1 {[%clk 0:01:44]}  Qd2 {[%clk 0:01:48]} 21. Bf3 {[%clk 0:01:21]}  Qxd1 {[%clk 0:01:43]} 22. Rfxd1 {[%clk 0:01:22]}  b5 {[%clk 0:01:43]} 23. Bxe4 {[%clk 0:01:18]}  fxe4 {[%clk 0:01:41]} 24. Re1 {[%clk 0:01:13]}  f5 {[%clk 0:01:37]} 25. f3 {[%clk 0:01:13]}  Rae8 {[%clk 0:01:24]} 26. Rxa6 {[%clk 0:01:09]}  bxc4 {[%clk 0:01:24]} 27. Rxd6 {[%clk 0:01:08]}  exf3 {[%clk 0:01:18]} 28. Rc1 {[%clk 0:01:07]}  fxg2 {[%clk 0:00:31]} 29. Kxg2 {[%clk 0:01:03]}  f4 {[%clk 0:00:31]} 30. Kf3 {[%clk 0:00:50]}  Re3+ {[%clk 0:00:30]} 31. Kf2 {[%clk 0:00:48]}  c3 {[%clk 0:00:29]} 32. Rc6 {[%clk 0:00:48]}  Rxh3 {[%clk 0:00:20]} 33. Rxc5 {[%clk 0:00:48]}  f3 {[%clk 0:00:18]} 34. R5xc3 {[%clk 0:00:46]}  Rh2+ {[%clk 0:00:17]} 35. Ke3 {[%clk 0:00:44]}  Re2+ {[%clk 0:00:17]} 36. Kd4 {[%clk 0:00:43]}  f2 {[%clk 0:00:17]} 37. Rc7+ {[%clk 0:00:38]}  Kg6 {[%clk 0:00:11]} 38. R1c6+ {[%clk 0:00:38]}  Rf6 {[%clk 0:00:09]} 39. Rxf6+ {[%clk 0:00:27]}  Kxf6 {[%clk 0:00:10]} 40. Rc8 {[%clk 0:00:25]}  Kg7 {[%clk 0:00:08]} 41. Rc7+ {[%clk 0:00:22]}  Kf6 {[%clk 0:00:09]} 42. Rc8 {[%clk 0:00:22]}  Kf7 {[%clk 0:00:10]} 43. Rc7+ {[%clk 0:00:21]}  Ke8 {[%clk 0:00:10]} 44. d6 {[%clk 0:00:21]}  f1=Q {[%clk 0:00:08]} 45. Rc8+ {[%clk 0:00:20]}  Kd7 {[%clk 0:00:08]} 0-1


[Site "https://www.chess.com"]

[Event "Titled Tuesday Blitz December 20 Early 2022"]
[White "Arnaldofdelavaramulet"]
[Black "Viktorin, Tomas"]
[BlackFideId "328316"]
[WhiteElo "2648"]
[BlackElo "1971"]
[Result "1-0"]
[Round "03"]
[TimeControl "180+2"]
[Date "2022.12.20"]
[WhiteClock "0:00:07"]
[BlackClock "0:00:02"]

1. Nf3 {[%clk 0:03:00]}  Nf6 {[%clk 0:02:59]} 2. g3 {[%clk 0:03:01]}  g6 {[%clk 0:02:56]} 3. b3 {[%clk 0:03:01]}  Bg7 {[%clk 0:02:57]} 4. Bb2 {[%clk 0:03:01]}  O-O {[%clk 0:02:57]} 5. Bg2 {[%clk 0:03:02]}  d6 {[%clk 0:02:58]} 6. d4 {[%clk 0:03:02]}  Nc6 {[%clk 0:02:56]} 7. c4 {[%clk 0:03:01]}  e5 {[%clk 0:02:56]} 8. dxe5 {[%clk 0:03:01]}  Ng4 {[%clk 0:02:53]} 9. O-O {[%clk 0:03:01]}  Ngxe5 {[%clk 0:02:53]} 10. Qd2 {[%clk 0:03:02]}  Nxf3+ {[%clk 0:02:43]} 11. Bxf3 {[%clk 0:03:03]}  Bh3 {[%clk 0:02:43]} 12. Re1 {[%clk 0:02:57]}  Re8 {[%clk 0:02:43]} 13. Bxg7 {[%clk 0:02:54]}  Kxg7 {[%clk 0:02:43]} 14. Nc3 {[%clk 0:02:54]}  Rb8 {[%clk 0:02:39]} 15. Rad1 {[%clk 0:02:46]}  h5 {[%clk 0:02:38]} 16. Nd5 {[%clk 0:02:34]}  Ne5 {[%clk 0:02:32]} 17. Qc3 {[%clk 0:02:27]}  f6 {[%clk 0:02:22]} 18. Bg2 {[%clk 0:02:23]}  Bxg2 {[%clk 0:02:22]} 19. Kxg2 {[%clk 0:02:24]}  h4 {[%clk 0:02:11]} 20. c5 {[%clk 0:02:10]}  c6 {[%clk 0:01:57]} 21. Nf4 {[%clk 0:02:10]}  d5 {[%clk 0:01:56]} 22. e4 {[%clk 0:02:10]}  hxg3 {[%clk 0:01:48]} 23. hxg3 {[%clk 0:02:05]}  g5 {[%clk 0:01:43]} 24. Nh5+ {[%clk 0:01:46]}  Kg6 {[%clk 0:01:39]} 25. exd5 {[%clk 0:01:46]}  cxd5 {[%clk 0:01:20]} 26. Rd4 {[%clk 0:00:53]}  Qd7 {[%clk 0:00:53]} 27. Qc2+ {[%clk 0:00:52]}  f5 {[%clk 0:00:31]} 28. Qd1 {[%clk 0:00:39]}  Nc6 {[%clk 0:00:31]} 29. Rxe8 {[%clk 0:00:33]}  Qxe8 {[%clk 0:00:29]} 30. Rxd5 {[%clk 0:00:30]}  Qe4+ {[%clk 0:00:28]} 31. f3 {[%clk 0:00:30]}  Qe3 {[%clk 0:00:22]} 32. Rd6+ {[%clk 0:00:29]}  Kf7 {[%clk 0:00:16]} 33. Rf6+ {[%clk 0:00:24]}  Ke8 {[%clk 0:00:14]} 34. Re6+ {[%clk 0:00:25]}  Qxe6 {[%clk 0:00:14]} 35. Ng7+ {[%clk 0:00:25]}  Kf7 {[%clk 0:00:14]} 36. Nxe6 {[%clk 0:00:26]}  Kxe6 {[%clk 0:00:14]} 37. Qd6+ {[%clk 0:00:25]}  Kf7 {[%clk 0:00:14]} 38. Qh6 {[%clk 0:00:21]}  g4 {[%clk 0:00:13]} 39. Qh7+ {[%clk 0:00:17]}  Ke6 {[%clk 0:00:13]} 40. fxg4 {[%clk 0:00:16]}  fxg4 {[%clk 0:00:14]} 41. Qg6+ {[%clk 0:00:17]}  Kd5 {[%clk 0:00:14]} 42. Qxg4 {[%clk 0:00:13]}  Kxc5 {[%clk 0:00:14]} 43. Qf5+ {[%clk 0:00:10]}  Kb6 {[%clk 0:00:14]} 44. g4 {[%clk 0:00:10]}  Re8 {[%clk 0:00:13]} 45. g5 {[%clk 0:00:10]}  Re5 {[%clk 0:00:12]} 46. Qf6 {[%clk 0:00:09]}  Re2+ {[%clk 0:00:10]} 47. Kf1 {[%clk 0:00:09]}  Rxa2 {[%clk 0:00:10]} 48. g6 {[%clk 0:00:09]}  Ra5 {[%clk 0:00:02]} 49. g7 {[%clk 0:00:09]}  Kb5 {[%clk 0:00:01]} 50. g8=Q {[%clk 0:00:08]}  Kb4 {[%clk 0:00:01]} 51. Qc4+ {[%clk 0:00:07]}  Ka3 {[%clk 0:00:02]} 52. Qa1# {[%clk 0:00:07]} 1-0


[Site "https://www.chess.com"]

[Event "Titled Tuesday Blitz December 20 Early 2022"]
[White "Artem_0degov"]
[Black "JoliyRoger"]
[WhiteElo "2661"]
[BlackElo "2429"]
[Result "1-0"]
[Round "03"]
[TimeControl "180+2"]
[Date "2022.12.20"]
[WhiteClock "0:00:17"]
[BlackClock "0:00:01"]

1. d4 {[%clk 0:03:00]}  Nf6 {[%clk 0:02:47]} 2. c4 {[%clk 0:03:00]}  e6 {[%clk 0:02:43]} 3. Nf3 {[%clk 0:03:00]}  Bb4+ {[%clk 0:02:42]} 4. Nbd2 {[%clk 0:03:00]}  b6 {[%clk 0:02:38]} 5. a3 {[%clk 0:03:00]}  Bxd2+ {[%clk 0:02:38]} 6. Qxd2 {[%clk 0:03:01]}  Bb7 {[%clk 0:02:38]} 7. e3 {[%clk 0:03:02]}  O-O {[%clk 0:02:37]} 8. Bd3 {[%clk 0:03:01]}  d5 {[%clk 0:02:38]} 9. O-O {[%clk 0:03:00]}  Nbd7 {[%clk 0:02:38]} 10. Qc2 {[%clk 0:03:00]}  c5 {[%clk 0:02:33]} 11. b4 {[%clk 0:02:53]}  dxc4 {[%clk 0:02:26]} 12. Bxc4 {[%clk 0:02:54]}  Bxf3 {[%clk 0:02:13]} 13. gxf3 {[%clk 0:02:55]}  cxd4 {[%clk 0:02:13]} 14. Bb2 {[%clk 0:02:55]}  Rc8 {[%clk 0:02:11]} 15. Qb3 {[%clk 0:02:45]}  Ne5 {[%clk 0:02:07]} 16. Be2 {[%clk 0:02:27]}  d3 {[%clk 0:01:53]} 17. Rfd1 {[%clk 0:01:56]}  Qc7 {[%clk 0:01:28]} 18. Bxe5 {[%clk 0:01:50]}  Qxe5 {[%clk 0:01:26]} 19. Bxd3 {[%clk 0:01:49]}  Rc3 {[%clk 0:01:24]} 20. Qb1 {[%clk 0:01:49]}  Rfc8 {[%clk 0:01:23]} 21. Bf1 {[%clk 0:01:43]}  g6 {[%clk 0:00:32]} 22. Bg2 {[%clk 0:01:38]}  h5 {[%clk 0:00:20]} 23. a4 {[%clk 0:01:24]}  h4 {[%clk 0:00:20]} 24. a5 {[%clk 0:01:20]}  Qg5 {[%clk 0:00:20]} 25. h3 {[%clk 0:01:18]}  Nd5 {[%clk 0:00:17]} 26. f4 {[%clk 0:01:02]}  Qh5 {[%clk 0:00:07]} 27. Bxd5 {[%clk 0:00:26]}  exd5 {[%clk 0:00:07]} 28. Qa2 {[%clk 0:00:19]}  R8c4 {[%clk 0:00:03]} 29. axb6 {[%clk 0:00:19]}  axb6 {[%clk 0:00:03]} 30. b5 {[%clk 0:00:17]}  Rc2 {[%clk 0:00:01]} 31. Qa8+ {[%clk 0:00:17]} 1-0


[Site "https://www.chess.com"]

[Event "Titled Tuesday Blitz December 20 Early 2022"]
[White "Aslanov_Umid"]
[Black "Zampronha, Wladimir Camilo"]
[BlackFideId "2103087"]
[WhiteElo "2425"]
[BlackElo "2176"]
[Result "1-0"]
[Round "03"]
[TimeControl "180+2"]
[Date "2022.12.20"]
[WhiteClock "0:01:15"]
[BlackClock "0:00:14"]

1. e4 {[%clk 0:03:00]}  c5 {[%clk 0:02:59]} 2. Nf3 {[%clk 0:03:01]}  e6 {[%clk 0:02:59]} 3. d4 {[%clk 0:03:01]}  cxd4 {[%clk 0:03:00]} 4. Nxd4 {[%clk 0:03:02]}  Nc6 {[%clk 0:03:00]} 5. Nc3 {[%clk 0:02:58]}  Qc7 {[%clk 0:03:01]} 6. g3 {[%clk 0:02:58]}  Nf6 {[%clk 0:02:58]} 7. Bg2 {[%clk 0:02:58]}  Be7 {[%clk 0:02:48]} 8. O-O {[%clk 0:02:57]}  O-O {[%clk 0:02:48]} 9. Be3 {[%clk 0:02:39]}  a6 {[%clk 0:02:47]} 10. Nxc6 {[%clk 0:02:35]}  bxc6 {[%clk 0:02:47]} 11. Na4 {[%clk 0:02:36]}  Rb8 {[%clk 0:02:43]} 12. c4 {[%clk 0:02:34]}  c5 {[%clk 0:02:40]} 13. e5 {[%clk 0:02:25]}  Ne8 {[%clk 0:02:35]} 14. f4 {[%clk 0:02:25]}  Bb7 {[%clk 0:02:35]} 15. b3 {[%clk 0:02:23]}  Bxg2 {[%clk 0:02:34]} 16. Kxg2 {[%clk 0:02:24]}  d6 {[%clk 0:02:27]} 17. exd6 {[%clk 0:02:24]}  Bxd6 {[%clk 0:02:24]} 18. Qf3 {[%clk 0:02:23]}  Nf6 {[%clk 0:02:22]} 19. Rad1 {[%clk 0:02:22]}  Rfd8 {[%clk 0:02:20]} 20. Rd2 {[%clk 0:02:18]}  Be7 {[%clk 0:02:20]} 21. Rfd1 {[%clk 0:02:18]}  Rxd2+ {[%clk 0:02:18]} 22. Rxd2 {[%clk 0:02:19]}  h5 {[%clk 0:02:14]} 23. h3 {[%clk 0:02:16]}  Rc8 {[%clk 0:02:07]} 24. Nc3 {[%clk 0:02:01]}  Rd8 {[%clk 0:02:01]} 25. Ne4 {[%clk 0:01:58]}  Rxd2+ {[%clk 0:01:57]} 26. Bxd2 {[%clk 0:01:47]}  Nxe4 {[%clk 0:01:56]} 27. Qxe4 {[%clk 0:01:48]}  Qd7 {[%clk 0:01:51]} 28. Be3 {[%clk 0:01:36]}  h4 {[%clk 0:01:28]} 29. g4 {[%clk 0:01:32]}  Qd1 {[%clk 0:00:26]} 30. Bf2 {[%clk 0:01:26]}  Bf6 {[%clk 0:00:17]} 31. g5 {[%clk 0:01:17]}  Bd4 {[%clk 0:00:17]} 32. g6 {[%clk 0:01:18]}  Qd2 {[%clk 0:00:14]} 33. Qa8# {[%clk 0:01:15]} 1-0


[Site "https://www.chess.com"]

[Event "Titled Tuesday Blitz December 20 Early 2022"]
[White "AttractiveChess"]
[Black "dropstoneDP"]
[WhiteElo "2784"]
[BlackElo "3038"]
[Result "0-1"]
[Round "03"]
[TimeControl "180+2"]
[Date "2022.12.20"]
[WhiteClock "0:00:17"]
[BlackClock "0:00:13"]

1. Nf3 {[%clk 0:02:56]}  Nf6 {[%clk 0:02:57]} 2. c4 {[%clk 0:02:55]}  g6 {[%clk 0:02:57]} 3. g3 {[%clk 0:02:55]}  Bg7 {[%clk 0:02:55]} 4. Bg2 {[%clk 0:02:55]}  c6 {[%clk 0:02:56]} 5. Qc2 {[%clk 0:02:53]}  d5 {[%clk 0:02:55]} 6. b3 {[%clk 0:02:53]}  Bf5 {[%clk 0:02:42]} 7. d3 {[%clk 0:02:53]}  O-O {[%clk 0:02:31]} 8. Bb2 {[%clk 0:02:53]}  a5 {[%clk 0:02:24]} 9. a3 {[%clk 0:02:42]}  Nbd7 {[%clk 0:02:18]} 10. O-O {[%clk 0:02:42]}  Bg4 {[%clk 0:01:41]} 11. Nbd2 {[%clk 0:02:41]}  Re8 {[%clk 0:01:40]} 12. h3 {[%clk 0:02:05]}  Bxf3 {[%clk 0:01:40]} 13. Nxf3 {[%clk 0:02:05]}  e6 {[%clk 0:01:41]} 14. Bc3 {[%clk 0:01:57]}  Nh5 {[%clk 0:01:36]} 15. Bxg7 {[%clk 0:01:55]}  Nxg7 {[%clk 0:01:37]} 16. d4 {[%clk 0:01:50]}  Nf5 {[%clk 0:01:36]} 17. e3 {[%clk 0:01:47]}  Nd6 {[%clk 0:01:35]} 18. Nd2 {[%clk 0:01:46]}  Qe7 {[%clk 0:01:31]} 19. Rfc1 {[%clk 0:01:44]}  Rec8 {[%clk 0:01:30]} 20. Qd3 {[%clk 0:01:36]}  Kg7 {[%clk 0:01:28]} 21. Rab1 {[%clk 0:01:35]}  Ne8 {[%clk 0:01:24]} 22. b4 {[%clk 0:01:19]}  axb4 {[%clk 0:01:25]} 23. axb4 {[%clk 0:01:20]}  Nef6 {[%clk 0:01:25]} 24. b5 {[%clk 0:01:18]}  Ra3 {[%clk 0:01:24]} 25. Rc3 {[%clk 0:01:06]}  Rca8 {[%clk 0:01:23]} 26. Nb3 {[%clk 0:00:53]}  Nb6 {[%clk 0:01:15]} 27. bxc6 {[%clk 0:00:50]}  bxc6 {[%clk 0:01:01]} 28. Nd2 {[%clk 0:00:47]}  Rxc3 {[%clk 0:00:54]} 29. Qxc3 {[%clk 0:00:47]}  Ra3 {[%clk 0:00:53]} 30. Qc2 {[%clk 0:00:48]}  Na4 {[%clk 0:00:48]} 31. Rb3 {[%clk 0:00:38]}  Rxb3 {[%clk 0:00:35]} 32. Qxb3 {[%clk 0:00:32]}  Qa7 {[%clk 0:00:35]} 33. Qb4 {[%clk 0:00:20]}  dxc4 {[%clk 0:00:34]} 34. Bxc6 {[%clk 0:00:16]}  c3 {[%clk 0:00:19]} 35. Qxa4 {[%clk 0:00:17]}  Qxa4 {[%clk 0:00:13]} 36. Bxa4 {[%clk 0:00:17]}  cxd2 {[%clk 0:00:13]} 0-1


[Site "https://www.chess.com"]

[Event "Titled Tuesday Blitz December 20 Early 2022"]
[White "AwareIdea"]
[Black "Michelin, Badi"]
[BlackFideId "26032708"]
[WhiteElo "2513"]
[BlackElo "1762"]
[Result "1-0"]
[Round "03"]
[TimeControl "180+2"]
[Date "2022.12.20"]
[WhiteClock "0:00:37"]
[BlackClock "0:00:03"]

1. d4 {[%clk 0:03:00]}  d5 {[%clk 0:02:58]} 2. c4 {[%clk 0:03:00]}  e6 {[%clk 0:02:58]} 3. g3 {[%clk 0:02:59]}  Nf6 {[%clk 0:02:58]} 4. Bg2 {[%clk 0:02:59]}  Be7 {[%clk 0:02:58]} 5. Nf3 {[%clk 0:02:58]}  O-O {[%clk 0:02:58]} 6. Nc3 {[%clk 0:02:58]}  c5 {[%clk 0:02:53]} 7. cxd5 {[%clk 0:02:58]}  exd5 {[%clk 0:02:53]} 8. O-O {[%clk 0:02:58]}  Nc6 {[%clk 0:02:53]} 9. b3 {[%clk 0:02:58]}  Bg4 {[%clk 0:02:43]} 10. dxc5 {[%clk 0:02:57]}  Bxc5 {[%clk 0:02:43]} 11. Bb2 {[%clk 0:02:56]}  Re8 {[%clk 0:02:43]} 12. Rc1 {[%clk 0:02:53]}  Bf8 {[%clk 0:02:21]} 13. h3 {[%clk 0:02:51]}  Bh5 {[%clk 0:02:20]} 14. g4 {[%clk 0:02:45]}  Bg6 {[%clk 0:02:19]} 15. e3 {[%clk 0:02:42]}  h6 {[%clk 0:02:02]} 16. a3 {[%clk 0:02:37]}  Rc8 {[%clk 0:02:02]} 17. Ne2 {[%clk 0:02:34]}  Ne4 {[%clk 0:01:57]} 18. Nf4 {[%clk 0:02:30]}  Nf6 {[%clk 0:01:41]} 19. Nxg6 {[%clk 0:02:29]}  fxg6 {[%clk 0:01:41]} 20. Qd3 {[%clk 0:02:23]}  Kh7 {[%clk 0:01:35]} 21. Rfd1 {[%clk 0:02:22]}  Ne7 {[%clk 0:01:18]} 22. Rxc8 {[%clk 0:02:18]}  Qxc8 {[%clk 0:01:16]} 23. g5 {[%clk 0:02:13]}  Ne4 {[%clk 0:01:03]} 24. gxh6 {[%clk 0:02:10]}  Kxh6 {[%clk 0:00:28]} 25. Ne5 {[%clk 0:02:03]}  Qf5 {[%clk 0:00:20]} 26. Ng4+ {[%clk 0:01:56]}  Kh7 {[%clk 0:00:20]} 27. f3 {[%clk 0:01:50]}  Ng3 {[%clk 0:00:19]} 28. e4 {[%clk 0:01:47]}  dxe4 {[%clk 0:00:18]} 29. fxe4 {[%clk 0:01:47]}  Qf4 {[%clk 0:00:09]} 30. Qf3 {[%clk 0:01:34]}  Qxf3 {[%clk 0:00:09]} 31. Bxf3 {[%clk 0:01:35]}  Nc6 {[%clk 0:00:07]} 32. Rd7 {[%clk 0:01:30]}  Bc5+ {[%clk 0:00:07]} 33. Kg2 {[%clk 0:01:28]}  Nh5 {[%clk 0:00:07]} 34. Rxb7 {[%clk 0:01:23]}  Nd4 {[%clk 0:00:07]} 35. b4 {[%clk 0:01:11]}  Nxf3 {[%clk 0:00:05]} 36. bxc5 {[%clk 0:01:08]}  Ng5 {[%clk 0:00:03]} 37. Bxg7 {[%clk 0:00:59]}  Nxg7 {[%clk 0:00:03]} 38. Nf6+ {[%clk 0:00:59]}  Kh6 {[%clk 0:00:02]} 39. Nxe8 {[%clk 0:00:57]}  Nxe8 {[%clk 0:00:02]} 40. Re7 {[%clk 0:00:54]}  Nf6 {[%clk 0:00:02]} 41. c6 {[%clk 0:00:52]}  Ngxe4 {[%clk 0:00:03]} 42. c7 {[%clk 0:00:44]}  Nd6 {[%clk 0:00:03]} 43. Re6 {[%clk 0:00:39]}  Nfe4 {[%clk 0:00:03]} 44. Kf3 {[%clk 0:00:37]} 1-0


[Site "https://www.chess.com"]

[Event "Titled Tuesday Blitz December 20 Early 2022"]
[White "Azoulas, Mark"]
[Black "ChessicallyInclined"]
[WhiteFideId "2033208"]
[WhiteElo "2326"]
[BlackElo "2693"]
[Result "0-1"]
[Round "03"]
[TimeControl "180+2"]
[Date "2022.12.20"]
[WhiteClock "0:00:10"]
[BlackClock "0:00:41"]

1. e4 {[%clk 0:03:00]}  a6 {[%clk 0:02:59]} 2. d4 {[%clk 0:02:55]}  e6 {[%clk 0:02:58]} 3. Nc3 {[%clk 0:02:55]}  b5 {[%clk 0:02:58]} 4. g3 {[%clk 0:02:55]}  Bb7 {[%clk 0:02:57]} 5. Bg2 {[%clk 0:02:55]}  Nf6 {[%clk 0:02:56]} 6. Qe2 {[%clk 0:02:47]}  c5 {[%clk 0:02:53]} 7. Be3 {[%clk 0:02:46]}  cxd4 {[%clk 0:02:52]} 8. Bxd4 {[%clk 0:02:44]}  Nc6 {[%clk 0:02:53]} 9. Be3 {[%clk 0:02:44]}  Bb4 {[%clk 0:02:49]} 10. f4 {[%clk 0:02:43]}  Qa5 {[%clk 0:02:44]} 11. Bd2 {[%clk 0:02:37]}  Kd8 {[%clk 0:02:29]} 12. Nf3 {[%clk 0:02:32]}  Bxc3 {[%clk 0:02:21]} 13. Bxc3 {[%clk 0:02:32]}  b4 {[%clk 0:02:22]} 14. Bd2 {[%clk 0:02:29]}  Qb6 {[%clk 0:02:06]} 15. Be3 {[%clk 0:02:28]}  Qb5 {[%clk 0:02:05]} 16. Qxb5 {[%clk 0:02:21]}  axb5 {[%clk 0:02:06]} 17. Ng5 {[%clk 0:02:02]}  Ke8 {[%clk 0:02:04]} 18. e5 {[%clk 0:02:01]}  Ng4 {[%clk 0:01:57]} 19. Bc5 {[%clk 0:01:55]}  b3 {[%clk 0:01:32]} 20. cxb3 {[%clk 0:01:29]}  Na5 {[%clk 0:01:31]} 21. Bxb7 {[%clk 0:01:24]}  Nxb7 {[%clk 0:01:31]} 22. Bb4 {[%clk 0:01:25]}  f6 {[%clk 0:01:28]} 23. Ne4 {[%clk 0:01:23]}  fxe5 {[%clk 0:01:27]} 24. fxe5 {[%clk 0:01:15]}  Nxe5 {[%clk 0:01:28]} 25. O-O {[%clk 0:01:13]}  Nc6 {[%clk 0:01:28]} 26. Bc3 {[%clk 0:01:12]}  Rg8 {[%clk 0:01:22]} 27. a4 {[%clk 0:01:00]}  b4 {[%clk 0:01:22]} 28. Bd2 {[%clk 0:00:57]}  h6 {[%clk 0:01:18]} 29. Rf3 {[%clk 0:00:48]}  Ke7 {[%clk 0:01:14]} 30. Rd3 {[%clk 0:00:36]}  Rgf8 {[%clk 0:01:01]} 31. Rd1 {[%clk 0:00:32]}  d5 {[%clk 0:00:56]} 32. Nf2 {[%clk 0:00:28]}  Nc5 {[%clk 0:00:55]} 33. Re3 {[%clk 0:00:25]}  d4 {[%clk 0:00:55]} 34. Re2 {[%clk 0:00:23]}  Nxb3 {[%clk 0:00:54]} 35. Nd3 {[%clk 0:00:18]}  Rxa4 {[%clk 0:00:50]} 36. Rde1 {[%clk 0:00:17]}  Nxd2 {[%clk 0:00:45]} 37. Rxe6+ {[%clk 0:00:15]}  Kf7 {[%clk 0:00:41]} 38. Rxc6 {[%clk 0:00:14]}  Nf3+ {[%clk 0:00:42]} 39. Kf2 {[%clk 0:00:12]}  Nxe1 {[%clk 0:00:42]} 40. Kxe1 {[%clk 0:00:13]}  Ra1+ {[%clk 0:00:39]} 41. Kd2 {[%clk 0:00:13]}  Rh1 {[%clk 0:00:39]} 42. h4 {[%clk 0:00:13]}  Rh2+ {[%clk 0:00:39]} 43. Kc1 {[%clk 0:00:12]}  Ra8 {[%clk 0:00:39]} 44. Kb1 {[%clk 0:00:11]}  b3 {[%clk 0:00:40]} 45. Nf4 {[%clk 0:00:10]}  Rh1+ {[%clk 0:00:40]} 46. Rc1 {[%clk 0:00:09]}  Ra1+ {[%clk 0:00:40]} 47. Kxa1 {[%clk 0:00:10]}  Rxc1# {[%clk 0:00:41]} 0-1


[Site "https://www.chess.com"]

[Event "Titled Tuesday Blitz December 20 Early 2022"]
[White "Barbis, Athanasios"]
[Black "bazar-wokzal"]
[WhiteFideId "4215800"]
[WhiteElo "1953"]
[BlackElo "2582"]
[Result "0-1"]
[Round "03"]
[TimeControl "180+2"]
[Date "2022.12.20"]
[WhiteClock "0:00:02"]
[BlackClock "0:02:04"]

1. e4 {[%clk 0:03:00]}  Nc6 {[%clk 0:02:59]} 2. Nf3 {[%clk 0:03:00]}  d5 {[%clk 0:02:59]} 3. exd5 {[%clk 0:02:59]}  Qxd5 {[%clk 0:02:59]} 4. Nc3 {[%clk 0:02:58]}  Qa5 {[%clk 0:02:59]} 5. d4 {[%clk 0:02:57]}  Bg4 {[%clk 0:02:59]} 6. Be2 {[%clk 0:02:54]}  O-O-O {[%clk 0:02:59]} 7. Be3 {[%clk 0:02:48]}  Nf6 {[%clk 0:02:59]} 8. O-O {[%clk 0:02:43]}  e5 {[%clk 0:02:58]} 9. Ng5 {[%clk 0:01:59]}  Bxe2 {[%clk 0:02:50]} 10. Qxe2 {[%clk 0:01:59]}  exd4 {[%clk 0:02:50]} 11. Nxf7 {[%clk 0:01:58]}  Bb4 {[%clk 0:02:35]} 12. Nxh8 {[%clk 0:00:35]}  Rxh8 {[%clk 0:02:33]} 13. Rad1 {[%clk 0:00:17]}  Bxc3 {[%clk 0:02:27]} 14. bxc3 {[%clk 0:00:14]}  dxe3 {[%clk 0:02:27]} 15. Qxe3 {[%clk 0:00:13]}  Re8 {[%clk 0:02:25]} 16. Qh3+ {[%clk 0:00:13]}  Kb8 {[%clk 0:02:25]} 17. Rd3 {[%clk 0:00:13]}  a6 {[%clk 0:02:24]} 18. Rfd1 {[%clk 0:00:12]}  Qxa2 {[%clk 0:02:22]} 19. R3d2 {[%clk 0:00:08]}  Qe6 {[%clk 0:02:12]} 20. Qxe6 {[%clk 0:00:02]}  Rxe6 {[%clk 0:02:12]} 21. h3 {[%clk 0:00:03]}  a5 {[%clk 0:02:12]} 22. Ra1 {[%clk 0:00:02]}  Ka7 {[%clk 0:02:06]} 23. g4 {[%clk 0:00:02]}  h6 {[%clk 0:02:05]} 24. f4 {[%clk 0:00:02]}  Ka6 {[%clk 0:02:05]} 25. Kf2 {[%clk 0:00:02]}  Ne4+ {[%clk 0:02:04]} 0-1


[Site "https://www.chess.com"]

[Event "Titled Tuesday Blitz December 20 Early 2022"]
[White "Battlecruiser_Operational"]
[Black "Machidon, Cristi"]
[BlackFideId "13904590"]
[WhiteElo "2428"]
[BlackElo "2279"]
[Result "1-0"]
[Round "03"]
[TimeControl "180+2"]
[Date "2022.12.20"]
[WhiteClock "0:01:53"]
[BlackClock "0:00:45"]

1. d4 {[%clk 0:02:59]}  Nf6 {[%clk 0:02:59]} 2. c4 {[%clk 0:02:58]}  d6 {[%clk 0:02:58]} 3. Nf3 {[%clk 0:02:57]}  Nbd7 {[%clk 0:02:58]} 4. Nc3 {[%clk 0:02:53]}  e5 {[%clk 0:02:58]} 5. e4 {[%clk 0:02:53]}  Be7 {[%clk 0:02:58]} 6. Be2 {[%clk 0:02:53]}  O-O {[%clk 0:02:58]} 7. O-O {[%clk 0:02:53]}  Re8 {[%clk 0:02:58]} 8. Re1 {[%clk 0:02:53]}  c6 {[%clk 0:02:58]} 9. Bf1 {[%clk 0:02:51]}  Bf8 {[%clk 0:02:57]} 10. Bg5 {[%clk 0:02:50]}  h6 {[%clk 0:02:57]} 11. Bh4 {[%clk 0:02:49]}  Qc7 {[%clk 0:02:55]} 12. h3 {[%clk 0:02:47]}  Nh5 {[%clk 0:02:47]} 13. d5 {[%clk 0:02:25]}  a5 {[%clk 0:02:40]} 14. Nd2 {[%clk 0:02:12]}  Nf4 {[%clk 0:02:36]} 15. f3 {[%clk 0:02:06]}  Qb6+ {[%clk 0:02:32]} 16. Bf2 {[%clk 0:02:05]}  Qxb2 {[%clk 0:02:32]} 17. Na4 {[%clk 0:02:03]}  Qa3 {[%clk 0:00:59]} 18. Re3 {[%clk 0:01:59]}  Qb4 {[%clk 0:00:45]} 19. a3 {[%clk 0:01:53]} 1-0


[Site "https://www.chess.com"]